bitfinex/quotes_ETHUSD_20241001
["timestamp","ask_amount","ask_price","bid_price","bid_amount"]
[1727823391692,0.25702631,2458.3,2457.9,9.48588151]
[1727823391936,0.1679,2458.4,2457.9,9.48588151]
[1727823391937,4.23566,2458.4,2457.9,9.48588151]
[1727823392094,0.25702631,2458.2,2457.9,9.48588151]
[1727823392297,5.08573568,2458.4,2457.9,9.48588151]
[1727823392546,5.08573568,2458.4,2457.9,8.54549738]
[1727823392547,0.25702631,2458.1,2457.9,8.54549738]
[1727823392756,5.08573568,2458.4,2457.9,8.54549738]
[1727823393218,0.25686598,2458.3,2457.9,8.54549738]
[1727823395319,0.25686598,2458.3,2458.0,4.06833]
[1727823396254,0.25686598,2458.3,2457.9,8.54549738]
[1727823396401,0.25686598,2458.3,2458.0,0.85454974]
[1727823397407,0.25686598,2458.3,2458.0,4.92286974]
[1727823398153,0.25686598,2458.3,2458.0,0.85454974]
[1727823398444,0.25686598,2458.3,2458.0,5.00421697]
[1727823399215,0.25686598,2458.3,2458.0,0.93590697]
[1727823399418,0.25686598,2458.3,2457.9,8.54549738]
[1727823401815,0.25686598,2458.3,2458.0,4.06833]
[1727823402015,0.25686598,2458.3,2458.0,4.14968715]
[1727823402325,0.25686598,2458.3,2458.0,4.06833]
[1727823403610,0.25686598,2458.3,2458.0,5.78775399]
[1727823404261,0.25686598,2458.3,2458.0,6.84855039]
[1727823404573,1.10694166,2458.3,2458.0,6.84855039]
[1727823404858,0.25686598,2458.3,2458.0,6.84855039]
[1727823405416,1.10694166,2458.3,2458.0,2.78022039]
[1727823405618,1.10694166,2458.3,2458.0,1.71942399]
[1727823406053,1.10694166,2458.3,2458.0,5.86905119]
[1727823406263,0.25686598,2458.3,2458.2,1.71942399]
[1727823406429,0.25686598,2458.3,2458.2,5.78743399]
[1727823406614,0.85007568,2458.5,2458.2,6.77297839]
[1727823406817,0.25680084,2458.4,2458.2,6.77297839]
[1727823407210,0.25680084,2458.4,2458.2,2.70496839]
[1727823408156,0.25680084,2458.4,2458.2,1.71942399]
[1727823408457,0.25680084,2458.4,2458.1,4.0681]
[1727823408458,1.10687652,2458.4,2458.1,4.0681]
[1727823408658,1.10687652,2458.4,2457.9,8.13678]
[1727823408659,5.17457652,2458.4,2457.9,8.13678]
[1727823408967,1.01797568,2458.3,2457.9,4.06837]
[1727823409372,0.25688101,2458.2,2457.9,4.06837]
[1727823409662,1.01797568,2458.3,2457.9,4.06837]
[1727823409872,0.25688101,2458.1,2457.9,4.06837]
[1727823410083,0.85007568,2458.2,2457.9,8.13679]
[1727823410224,0.25688101,2458.0,2457.9,4.06837]
[1727823410424,1.01797568,2458.3,2457.9,4.06837]
[1727823410425,0.85007568,2458.2,2457.9,4.06837]
[1727823410666,0.25681086,2458.1,2457.9,4.06837]
[1727823410868,0.25681086,2458.1,2458.0,5.78776399]
[1727823411284,1.01797568,2458.3,2458.0,5.78776399]
[1727823411487,0.25680084,2458.1,2458.0,5.78776399]
[1727823411639,0.1679,2458.3,2458.0,5.78776399]
[1727823411640,1.01797568,2458.3,2458.0,5.78776399]
[1727823411842,0.25680084,2458.1,2458.0,5.78776399]
[1727823412058,0.85007568,2458.2,2458.0,5.78776399]
[1727823412342,0.25680084,2458.1,2458.0,5.78776399]
[1727823412765,0.85007568,2458.2,2458.0,1.71942399]
[1727823412969,0.25680084,2458.1,2458.0,5.78767399]
[1727823413538,1.01797568,2458.3,2458.0,5.78767399]
[1727823413735,0.25680084,2458.1,2458.0,5.78767399]
[1727823413973,1.01797568,2458.3,2458.0,5.78767399]
[1727823414183,0.25680084,2458.1,2458.0,5.78767399]
[1727823414344,1.01797568,2458.3,2458.0,1.71942399]
[1727823414542,1.01797568,2458.3,2458.1,4.06813]
[1727823414761,1.01797568,2458.3,2458.0,1.71942399]
[1727823415104,1.01797568,2458.3,2458.0,5.78776399]
[1727823416863,0.85007568,2458.2,2458.0,5.78776399]
[1727823417062,1.01797568,2458.3,2458.0,5.78776399]
[1727823419596,0.85007568,2458.3,2458.2,6.55003399]
[1727823419809,0.85007568,2458.4,2458.2,2.48202399]
[1727823420301,0.85007568,2458.5,2458.2,2.48202399]
[1727823420595,0.85007568,2458.4,2458.2,2.48202399]
[1727823421107,0.85007568,2458.5,2458.0,0.9856384]
[1727823421314,0.85007568,2458.3,2458.0,4.06825]
[1727823421597,0.85007568,2458.4,2458.1,5.86894932]
[1727823423105,0.85007568,2458.4,2458.1,5.78759399]
[1727823423279,0.85007568,2458.4,2458.1,9.85576399]
[1727823423971,0.85007568,2458.4,2458.1,5.78759399]
[1727823424185,6.2438466,2458.4,2457.9,6.55050399]
[1727823424388,1.01797568,2458.3,2457.9,6.55050399]
[1727823424567,4.06845,2458.0,2457.5,1.60972388]
[1727823424766,4.23648,2457.9,2457.5,0.7626]
[1727823424992,5.08655568,2457.9,2457.5,0.7626]
[1727823425707,5.08655568,2457.9,2457.5,2.48202399]
[1727823426909,1.01797568,2457.9,2457.5,1.71942399]
[1727823427112,5.08657568,2457.9,2457.5,1.71942399]
[1727823427578,0.25684594,2457.8,2457.5,1.71942399]
[1727823427774,1.10692162,2457.8,2457.5,1.71942399]
[1727823428610,0.25684594,2457.8,2457.5,1.71942399]
[1727823429029,1.10692162,2457.8,2457.5,1.71942399]
[1727823429615,0.25684594,2457.8,2457.5,1.71942399]
[1727823429820,1.10692162,2457.8,2457.5,1.71942399]
[1727823430921,1.10692162,2457.8,2457.5,5.78858399]
[1727823431112,0.25684594,2457.8,2457.6,4.06892]
[1727823431303,0.25684594,2457.8,2457.7,6.55086399]
[1727823431507,0.85007568,2458.1,2457.8,4.06865]
[1727823431725,0.85007568,2458.1,2457.9,1.71942399]
[1727823432016,0.85007568,2458.2,2457.9,1.71942399]
[1727823432590,0.85007568,2458.2,2458.1,1.71942399]
[1727823432818,0.85007568,2458.4,2458.2,4.06801]
[1727823433020,1.44301353,2458.6,2458.3,1.71942399]
[1727823433021,0.85007568,2458.5,2458.3,1.71942399]
[1727823433321,0.85007568,2458.5,2457.9,0.66319495]
[1727823433322,1.27511353,2458.5,2457.8,4.86726]
[1727823433530,1.27511353,2458.5,2457.9,1.71942399]
[1727823433531,0.85186928,2458.3,2457.9,1.71942399]
[1727823433890,4.06803,2458.2,2457.9,1.71942399]
[1727823436098,4.91989928,2458.2,2457.9,1.71942399]
[1727823436500,4.06803,2458.2,2457.9,1.71942399]
[1727823437135,0.85186928,2458.3,2457.9,1.71942399]
[1727823437434,4.91971928,2458.3,2457.9,1.71942399]
[1727823438230,0.85186928,2458.3,2457.9,5.78793399]
[1727823438389,4.91988928,2458.2,2457.9,1.71942399]
[1727823438594,0.85186928,2458.2,2457.9,1.71942399]
[1727823440490,5.34307353,2458.3,2457.9,1.71942399]
[1727823440491,4.06796,2458.3,2457.9,1.71942399]
[1727823440732,4.06796,2458.3,2457.8,4.86722]
[1727823440935,4.06796,2458.3,2457.9,1.71942399]
[1727823441493,0.85192439,2458.2,2457.9,1.71942399]
[1727823442397,0.85192439,2458.2,2457.9,5.78792399]
[1727823442601,0.24784956,2458.1,2457.9,5.78792399]
[1727823442800,0.24784956,2458.1,2457.9,2.78493839]
[1727823443512,0.24784956,2458.1,2458.0,4.86704]
[1727823443734,0.85192439,2458.7,2458.5,4.86622]
[1727823443945,0.85192439,2458.8,2458.6,1.71942399]
[1727823444090,4.91905439,2458.8,2458.5,0.7987]
[1727823444293,4.91905439,2458.8,2458.4,1.71942399]
[1727823444716,4.91911439,2458.7,2458.4,1.71942399]
[1727823444922,4.91911439,2458.7,2458.1,0.7987]
[1727823444923,4.06775,2458.4,2458.1,0.7987]
[1727823445111,4.06806,2458.2,2458.0,1.71942399]
[1727823445920,0.85192439,2458.3,2458.0,1.71942399]
[1727823448416,0.85192439,2458.4,2458.2,1.71942399]
[1727823448947,0.85192439,2458.7,2458.5,4.06752]
[1727823449152,0.85192439,2458.8,2458.6,1.71942399]
[1727823449853,0.85192439,2458.9,2458.6,2.52642399]
[1727823450349,7.91878439,2458.9,2458.6,2.52642399]
[1727823450565,7.91878439,2458.9,2458.6,0.807]
[1727823450867,7.91878439,2458.9,2458.4,6.59400399]
[1727823450868,0.85192439,2458.8,2458.4,6.59400399]
[1727823451015,0.85192439,2458.8,2458.4,7.75875143]
[1727823451212,0.85192439,2458.8,2458.5,0.0813398]
[1727823451732,0.85192439,2458.8,2458.4,7.75875143]
[1727823451955,1.01982439,2458.8,2458.1,0.807]
[1727823452316,4.06759,2458.5,2458.1,2.52642399]
[1727823452471,4.91943439,2458.6,2458.1,2.52642399]
[1727823452763,4.91943439,2458.6,2458.3,1.71942399]
[1727823453066,8.98690439,2458.6,2458.3,1.71942399]
[1727823453425,4.06753,2458.5,2458.3,1.71942399]
[1727823453660,4.91945439,2458.5,2458.3,1.71942399]
[1727823453969,4.0677,2458.4,2458.1,2.52642399]
[1727823454142,4.31597349,2458.4,2458.1,2.52642399]
[1727823454460,4.31597349,2458.4,2458.1,0.807]
[1727823454761,4.31597349,2458.4,2458.1,2.52642399]
[1727823456406,0.24827349,2458.4,2458.3,1.71942399]
[1727823456675,0.24827349,2458.4,2458.3,6.67561629]
[1727823457185,0.24834413,2458.4,2458.3,6.67561629]
[1727823457488,4.91894439,2458.8,2458.4,4.06767]
[1727823457489,4.06702,2458.8,2458.4,4.06767]
[1727823457703,4.91894439,2458.8,2458.4,5.14200063]
[1727823457838,0.85192439,2458.8,2458.4,5.14200063]
[1727823458194,7.91879439,2458.9,2458.4,5.14200063]
[1727823458336,7.91879439,2458.9,2458.5,0.76684246]
[1727823458541,4.91895439,2458.8,2458.5,0.76684246]
[1727823458937,4.06703,2458.8,2458.5,0.76684246]
[1727823459381,7.91878439,2458.9,2458.5,0.84818272]
[1727823459814,0.85192439,2458.9,2458.6,1.71942399]
[1727823459983,8.98543439,2459.0,2458.7,0.807]
[1727823460290,4.06689,2458.9,2458.7,0.807]
[1727823461781,4.06671,2459.0,2458.8,1.71942399]
[1727823461982,4.91839439,2459.2,2458.8,1.9802003]
[1727823462186,4.91839439,2459.2,2458.8,1.71942399]
[1727823462483,4.06647,2459.2,2458.8,1.71942399]
[1727823462784,4.0666,2459.1,2458.8,1.71942399]
[1727823463082,4.06708,2458.8,2458.5,0.807]
[1727823463247,4.06694,2458.9,2458.5,0.807]
[1727823463658,8.13394,2458.9,2458.5,0.807]
[1727823463859,4.06694,2458.9,2458.6,1.80076292]
[1727823464067,4.06694,2458.9,2458.6,1.71942399]
[1727823464699,4.06694,2458.9,2458.6,1.80076292]
[1727823465001,4.06694,2458.9,2458.6,1.71942399]
[1727823465359,4.06694,2458.9,2458.6,1.80076292]
[1727823466500,4.06694,2458.9,2458.6,1.71942399]
[1727823466998,8.13395,2458.9,2458.6,1.71942399]
[1727823467189,4.06702,2458.8,2458.6,1.71942399]
[1727823470388,4.06702,2458.8,2458.5,0.807]
[1727823470389,4.06728,2458.7,2458.2,5.78741399]
[1727823470613,4.06728,2458.7,2458.3,0.8241]
[1727823470819,4.06737,2458.6,2458.3,0.8241]
[1727823471295,4.23527,2458.6,2458.2,5.78741399]
[1727823471827,0.85192439,2459.1,2458.9,4.06685]
[1727823471975,0.85192439,2459.4,2459.1,4.06652]
[1727823472173,1.44578659,2459.5,2459.1,4.06652]
[1727823472174,1.01982439,2459.5,2459.2,1.71942399]
[1727823472374,2.12970569,2459.7,2459.4,1.71942399]
[1727823472375,0.85192439,2459.7,2459.4,1.71942399]
[1727823472599,1.01982439,2459.8,2459.4,1.71942399]
[1727823472915,1.01982439,2459.8,2459.2,4.14766928]
[1727823472916,6.29848337,2459.8,2459.2,5.78567399]
[1727823473612,3.0,2459.7,2459.2,4.06625]
[1727823474786,7.06561,2459.7,2459.1,7.78833585]
[1727823476540,7.06561,2459.7,2459.1,3.72186585]
[1727823476742,3.0,2459.7,2459.1,3.72186585]
[1727823476931,7.06554,2459.7,2459.2,4.06636]
[1727823477742,7.06554,2459.7,2459.2,4.06624]
[1727823478138,7.06554,2459.7,2459.2,8.13251]
[1727823478822,7.06554,2459.7,2459.2,4.06624]
[1727823479143,7.06554,2459.7,2459.2,8.13252]
[1727823479349,7.06554,2459.7,2459.2,9.40036858]
[1727823479517,7.06554,2459.7,2459.2,5.33408858]
[1727823480828,7.06554,2459.7,2459.3,4.06616]
[1727823481566,0.55,2459.7,2459.3,4.06616]
[1727823481720,0.55,2459.7,2459.2,9.40036858]
[1727823482122,3.0,2459.8,2459.3,1.31222344]
[1727823482330,3.85192439,2460.0,2459.6,4.06568]
[1727823482546,0.85192439,2460.3,2460.0,4.06493]
[1727823482766,0.42577446,2460.4,2460.1,4.06472]
[1727823482966,0.85192439,2460.5,2460.1,4.06472]
[1727823483280,0.85192439,2460.5,2459.9,3.72186585]
[1727823483281,4.06438,2460.4,2459.9,7.78699585]
[1727823483483,4.06422,2460.5,2459.9,7.78699585]
[1727823483998,4.06438,2460.4,2459.9,7.78699585]
[1727823485286,3.0,2460.4,2460.0,4.14630299]
[1727823485583,7.06441,2460.4,2459.9,11.85211585]
[1727823485782,7.06441,2460.4,2459.9,7.78698585]
[1727823487459,0.24109094,2460.3,2459.9,7.78698585]
[1727823487879,0.24109094,2460.3,2459.9,11.85211585]
[1727823488047,0.24109094,2460.3,2459.9,11.85210585]
[1727823488248,0.24109094,2460.3,2459.9,7.78698585]
[1727823488977,0.24109094,2460.3,2459.9,11.85208585]
[1727823489159,0.24109094,2460.3,2459.9,7.78696585]
[1727823489367,0.24109094,2460.3,2459.9,11.85207585]
[1727823489694,0.24109094,2460.3,2459.9,8.13021]
[1727823490013,0.24109094,2460.3,2459.9,4.0651]
[1727823490799,0.24109094,2460.3,2460.0,4.06492]
[1727823491175,0.24109094,2460.3,2460.2,4.06471]
[1727823491382,4.23163,2460.8,2460.4,4.06436]
[1727823491604,0.1679,2460.8,2460.4,4.06436]
[1727823491887,0.1679,2460.8,2460.4,4.06429]
[1727823492289,0.1679,2460.8,2460.4,8.12857]
[1727823492496,4.23163,2460.8,2460.4,4.06428]
[1727823492723,4.23163,2460.8,2460.2,4.88869]
[1727823492724,3.0,2460.7,2460.2,4.88869]
[1727823492921,4.23163,2460.8,2460.2,4.88869]
[1727823492922,7.23166,2460.8,2460.2,4.88869]
[1727823493119,7.23166,2460.8,2460.3,4.06445]
[1727823493280,8.361182,2460.8,2460.2,4.88869]
[1727823493474,4.06392,2460.7,2460.2,4.88869]
[1727823493874,4.06392,2460.7,2460.2,8.9533]
[1727823494094,4.06406,2460.6,2460.2,4.88869]
[1727823494811,4.06406,2460.6,2460.1,4.06487]
[1727823495222,4.06406,2460.6,2460.1,12.71296944]
[1727823495520,4.06406,2460.6,2460.2,4.06469]
[1727823495731,7.23172,2460.8,2460.3,4.06453]
[1727823496203,11.29559,2460.8,2460.3,4.06453]
[1727823496821,11.29554,2460.8,2460.3,4.06453]
[1727823497380,7.23172,2460.8,2460.3,4.06453]
[1727823497591,4.06391,2460.7,2460.2,0.90998439]
[1727823497793,4.06418,2460.6,2460.2,0.8287]
[1727823498012,5.193779,2460.6,2460.2,0.8287]
[1727823498923,5.193779,2460.6,2459.9,4.06506]
[1727823498924,4.06461,2460.3,2459.9,0.8287]
[1727823499106,4.06461,2460.3,2459.7,4.06543]
[1727823499107,4.06474,2460.2,2459.7,4.89413]
[1727823499318,4.06461,2460.3,2459.8,4.06528]
[1727823499638,3.1679,2460.4,2459.7,4.89413]
[1727823499853,4.06455,2460.3,2459.8,4.06535]
[1727823500390,8.12921,2460.3,2459.8,4.06535]
[1727823501039,4.06455,2460.3,2459.8,4.06535]
[1727823501348,8.0685559,2460.4,2459.9,4.06518]
[1727823501636,4.06477,2460.2,2459.7,4.89422]
[1727823501835,4.06477,2460.2,2459.6,4.06569]
[1727823501836,0.1679,2460.0,2459.6,4.06569]
[1727823502411,0.55,2460.2,2459.6,4.14700018]
[1727823502412,0.24160963,2459.9,2459.6,4.14700018]
[1727823502735,3.0,2460.2,2459.8,4.89407]
[1727823502905,4.61462,2460.3,2459.8,4.89407]
[1727823503338,8.12927,2460.3,2459.8,4.89407]
[1727823503507,4.06462,2460.3,2459.8,4.89407]
[1727823504101,3.0,2460.3,2459.8,4.89407]
[1727823504436,7.06462,2460.3,2459.8,4.89407]
[1727823511050,4.06471,2460.2,2459.8,4.89407]
[1727823513689,4.23278,2460.1,2459.6,6.55442645]
[1727823513891,0.55,2460.0,2459.6,1.71712645]
[1727823514096,4.61504,2460.0,2459.6,1.71712645]
[1727823515059,4.06524,2459.9,2459.6,1.71712645]
[1727823515991,4.61504,2460.0,2459.6,1.71712645]
[1727823516164,4.06521,2459.9,2459.6,1.71712645]
[1727823516578,4.61504,2460.0,2459.6,1.71712645]
[1727823517058,8.68023,2460.0,2459.6,1.71712645]
[1727823517619,0.24153861,2459.9,2459.6,1.71712645]
[1727823517898,0.24153861,2459.9,2459.2,0.7717]
[1727823517899,4.06581,2459.6,2459.2,0.7717]
[1727823518126,4.61546,2459.8,2459.4,5.78306645]
[1727823518254,0.24142697,2459.5,2459.4,5.78306645]
[1727823518455,0.55,2459.8,2459.4,6.85327913]
[1727823518677,0.24142697,2459.5,2459.4,1.71712645]
[1727823518904,4.61546,2459.8,2459.4,1.71712645]
[1727823519093,0.24142697,2459.5,2459.4,5.78315645]
[1727823519314,4.01982439,2459.9,2459.4,1.71712645]
[1727823519454,0.24135086,2459.5,2459.2,0.7717]
[1727823519804,0.24135086,2459.4,2459.2,0.7717]
[1727823520494,4.06579,2459.6,2459.2,6.55513645]
[1727823520675,0.24132041,2459.3,2459.2,6.55513645]
[1727823520877,4.06579,2459.6,2459.2,6.55513645]
[1727823521093,0.24132041,2459.3,2459.2,6.55513645]
[1727823521605,7.06555,2459.7,2459.2,6.55513645]
[1727823521929,0.24132041,2459.3,2459.2,6.55513645]
[1727823522207,0.24125951,2459.3,2459.2,6.55513645]
[1727823522404,4.06572,2459.6,2459.2,6.55513645]
[1727823522705,0.24125951,2459.3,2459.2,6.55513645]
[1727823522902,7.91747439,2459.7,2459.2,7.61729409]
[1727823523110,0.24125951,2459.3,2459.2,7.61729409]
[1727823523270,7.06555,2459.7,2459.2,7.61729409]
[1727823523465,4.06555,2459.7,2459.4,1.71712645]
[1727823523694,8.13123,2459.7,2459.4,1.71712645]
[1727823524082,4.06555,2459.7,2459.4,1.71712645]
[1727823524808,4.06579,2459.6,2459.2,3.55098409]
[1727823524968,4.06579,2459.6,2459.2,2.48882645]
[1727823526007,4.06579,2459.6,2459.2,6.55516645]
[1727823526365,4.06579,2459.6,2459.2,2.48882645]
[1727823527625,4.06579,2459.6,2459.2,1.71712645]
[1727823527626,0.1679,2459.6,2459.2,1.71712645]
[1727823527829,4.06611,2459.4,2459.0,2.50052645]
[1727823528028,4.06611,2459.4,2459.0,0.7834]
[1727823529051,4.06611,2459.4,2459.0,4.85008]
[1727823529995,4.06611,2459.4,2459.0,6.56720645]
[1727823531040,4.06586,2459.5,2459.0,6.56720645]
[1727823531990,4.06605,2459.4,2459.0,6.56720645]
[1727823532201,4.0662,2459.3,2458.9,4.06671]
[1727823532372,0.1679,2459.2,2458.8,4.85033]
[1727823532885,0.24109207,2459.1,2458.8,4.85033]
[1727823533258,0.24109207,2459.1,2458.8,2.50052645]
[1727823533487,0.24109207,2459.1,2458.9,4.06678]
[1727823534978,0.24109207,2459.1,2458.8,2.50052645]
[1727823535186,0.24109207,2459.1,2458.6,4.06726]
[1727823535187,4.06672,2459.0,2458.6,4.06726]
[1727823535345,0.24109207,2459.1,2458.7,4.06718]
[1727823535542,0.24094487,2458.9,2458.7,4.06706]
[1727823535758,0.55,2459.1,2458.7,4.06706]
[1727823535982,0.24093472,2458.8,2458.7,4.06706]
[1727823536193,0.55,2459.1,2458.7,4.06706]
[1727823536372,0.24093472,2458.8,2458.6,5.78445645]
[1727823536691,0.55,2459.1,2458.7,4.06718]
[1727823537945,4.91808439,2459.4,2458.8,4.8503]
[1727823538292,4.06612,2459.4,2458.9,4.06684]
[1727823538647,0.55,2459.2,2458.8,0.7834]
[1727823538864,3.1679,2459.4,2459.0,4.06661]
[1727823539285,7.23395,2459.4,2458.9,8.13354]
[1727823539583,3.1679,2459.4,2459.0,4.06667]
[1727823540191,3.0,2459.5,2459.2,0.7834]
[1727823540487,4.06588,2459.5,2459.2,0.7834]
[1727823541296,0.1679,2459.3,2458.9,4.06685]
[1727823541490,4.06644,2459.2,2458.8,0.7834]
[1727823541859,4.23411,2459.3,2458.8,0.7834]
[1727823542063,0.1679,2459.5,2458.8,1.268446]
[1727823542570,4.0662,2459.3,2458.9,4.06684]
[1727823542975,4.06638,2459.2,2458.8,4.8504]
[1727823543385,4.06638,2459.2,2458.8,0.7834]
[1727823545074,4.0662,2459.3,2458.8,4.85042]
[1727823545274,8.13252,2459.3,2458.8,4.85042]
[1727823545479,4.0662,2459.3,2458.8,4.85042]
[1727823545790,4.91792439,2459.5,2458.9,4.50712978]
[1727823545990,4.066,2459.5,2459.1,4.06648]
[1727823547173,8.13196,2459.5,2459.1,4.06648]
[1727823547377,7.91764439,2459.6,2459.1,8.13291]
[1727823547562,0.24071645,2459.4,2459.1,4.06643]
[1727823547768,7.06572,2459.6,2459.1,5.33045998]
[1727823548091,7.06572,2459.6,2459.1,4.06643]
[1727823548092,4.06591,2459.5,2459.1,4.06643]
[1727823548251,4.30669244,2459.5,2459.1,4.06643]
[1727823549354,4.30669244,2459.5,2459.0,4.1479939]
[1727823550358,0.24078244,2459.5,2459.0,0.0813239]
[1727823550561,4.06604,2459.4,2459.0,4.1479339]
[1727823550777,0.24079766,2459.3,2459.0,5.54652687]
[1727823550975,4.06594,2459.5,2459.0,5.54652687]
[1727823551177,0.24079766,2459.4,2459.0,5.54652687]
[1727823553277,4.30697766,2459.4,2459.0,0.0813239]
[1727823553603,4.06662,2459.1,2458.7,0.7593]
[1727823553794,0.24097026,2459.0,2458.7,0.7593]
[1727823553993,0.24097026,2459.0,2458.7,2.02107798]
[1727823554520,0.24097026,2459.0,2458.7,6.08818798]
[1727823555884,4.23431,2459.2,2458.7,6.08818798]
[1727823556109,0.24097026,2458.9,2458.7,6.08818798]
[1727823556326,4.23431,2459.2,2458.7,6.08818798]
[1727823556486,0.24097026,2458.8,2458.7,6.08818798]
[1727823556691,4.23431,2459.2,2458.7,6.08818798]
[1727823557422,0.24097026,2459.1,2458.7,6.08818798]
[1727823557586,0.24097026,2459.1,2458.8,4.6757788]
[1727823559638,0.24097026,2459.1,2458.8,6.39422769]
[1727823564464,0.24097026,2459.1,2458.8,5.78540889]
[1727823567115,1.09289465,2459.1,2458.8,5.78540889]
[1727823567314,0.24097026,2459.1,2458.8,5.78540889]
[1727823568449,1.09289465,2459.1,2458.8,5.78540889]
[1727823568654,0.24097026,2459.1,2458.8,5.78540889]
[1727823568819,0.24097026,2459.1,2458.9,4.06685]
[1727823569751,0.24097026,2459.1,2458.8,1.71844889]
[1727823570049,4.06677,2459.0,2458.7,0.7593]
[1727823570251,4.3074915,2459.0,2458.7,0.7593]
[1727823571130,1.09264589,2459.0,2458.7,0.7593]
[1727823571328,0.2407215,2459.0,2458.7,0.7593]
[1727823571545,1.09264589,2459.0,2458.7,6.54492889]
[1727823572041,1.09264589,2459.0,2458.7,10.61202889]
[1727823572241,1.09264589,2459.0,2458.9,5.78529889]
[1727823572242,0.2407215,2459.0,2458.9,5.78529889]
[1727823574234,0.2407215,2459.0,2458.9,1.71844889]
[1727823575834,0.2407215,2459.0,2458.9,6.60889889]
[1727823577238,1.09264589,2459.0,2458.9,2.54204889]
[1727823577569,1.09264589,2459.0,2458.7,6.84682178]
[1727823579938,1.09264589,2459.0,2458.8,8.13395]
[1727823580139,0.2407215,2459.0,2458.9,1.09136018]
[1727823580669,1.09264589,2459.0,2458.9,1.09136018]
[1727823581073,0.2407215,2459.0,2458.9,1.09136018]
[1727823581287,0.2407215,2459.0,2458.9,2.80980907]
[1727823581570,0.2407215,2459.0,2458.9,3.63340907]
[1727823582340,0.2407215,2459.0,2458.9,2.54204889]
[1727823583439,1.09264589,2459.0,2458.9,2.54204889]
[1727823583641,0.2407215,2459.0,2458.9,2.54204889]
[1727823585958,1.09264589,2459.0,2458.9,2.54204889]
[1727823586787,1.09264589,2459.0,2458.9,0.8236]
[1727823587960,1.09264589,2459.0,2458.7,5.78562889]
[1727823588175,1.09264589,2459.0,2458.7,7.13269178]
[1727823590003,1.09264589,2459.0,2458.7,11.19979178]
[1727823590207,0.2407215,2459.0,2458.7,7.13261178]
[1727823590701,1.09264589,2459.0,2458.7,7.13261178]
[1727823591003,1.09264589,2459.0,2458.8,0.71326118]
[1727823592587,0.2407215,2459.0,2458.8,0.71326118]
[1727823592813,1.09264589,2459.0,2458.8,0.71326118]
[1727823594571,0.2407215,2459.0,2458.8,0.71326118]
[1727823594773,1.09264589,2459.0,2458.7,7.13261178]
[1727823595437,0.2407215,2459.0,2458.8,4.06701]
[1727823595592,0.2407215,2459.0,2458.7,7.13261178]
[1727823595793,1.09264589,2459.0,2458.7,7.13261178]
[1727823596451,1.09264589,2459.0,2458.8,4.06701]
[1727823597226,1.09264589,2459.0,2458.7,7.13261178]
[1727823598792,1.09264589,2459.0,2458.8,0.79871134]
[1727823599033,0.2407215,2459.0,2458.9,6.55379889]
[1727823599344,1.27788659,2459.3,2458.9,6.55379889]
[1727823599345,0.85192439,2459.3,2459.1,4.06651]
[1727823599633,0.85192439,2459.3,2459.1,5.78495889]
[1727823599807,1.27788659,2459.4,2459.1,6.84979759]
[1727823599808,0.85192439,2459.2,2459.1,6.84979759]
[1727823600636,0.85192439,2459.3,2459.1,6.84978759]
[1727823600812,0.85192439,2459.3,2459.2,4.06636]
[1727823601033,0.85192439,2459.4,2459.3,4.06619]
[1727823601209,1.27788659,2459.6,2459.4,4.83453]
[1727823601210,0.85192439,2459.5,2459.4,4.83453]
[1727823601394,0.85192439,2459.6,2459.4,2.48694889]
[1727823601743,1.01982439,2459.5,2459.2,2.48694889]
[1727823602034,0.85192439,2459.4,2459.2,1.71844889]
[1727823602218,1.01982439,2459.5,2459.2,1.71844889]
[1727823602392,1.01982439,2459.5,2459.0,4.83519]
[1727823602393,0.85192439,2459.4,2459.0,4.83519]
[1727823602594,0.85192439,2459.4,2458.8,6.48873298]
[1727823602595,4.91819439,2459.3,2458.8,6.48873298]
[1727823602889,4.91819439,2459.3,2458.8,2.48694889]
[1727823602890,5.08628439,2459.2,2458.8,2.48694889]
[1727823603003,5.08628439,2459.2,2458.7,5.78550889]
[1727823603004,0.85192439,2459.1,2458.7,5.78550889]
[1727823603445,0.85192439,2459.1,2458.8,4.067]
[1727823603751,0.85192439,2459.1,2458.9,5.78527889]
[1727823603891,1.01982439,2459.2,2458.9,5.78527889]
[1727823604219,1.01982439,2459.2,2458.9,1.71844889]
[1727823604425,5.08619439,2459.2,2458.9,1.71844889]
[1727823604712,0.85192439,2459.1,2458.9,1.71844889]
[1727823605422,5.08621439,2459.2,2458.9,1.71844889]
[1727823605602,0.85192439,2459.1,2458.9,1.71844889]
[1727823606127,0.85192439,2459.1,2458.6,1.62300164]
[1727823606128,0.85192439,2459.0,2458.6,0.7685]
[1727823606438,0.85192439,2459.0,2458.6,4.83576]
[1727823606637,0.85192439,2459.0,2458.3,1.28175247]
[1727823606638,4.06703,2458.8,2458.3,5.69076164]
[1727823606836,0.85192439,2458.6,2458.3,4.06776]
[1727823607179,1.01982439,2458.6,2458.0,0.85450164]
[1727823607483,1.01982439,2458.6,2457.8,6.97342411]
[1727823607484,4.06793,2458.3,2457.8,6.97342411]
[1727823607723,0.1679,2458.2,2457.8,4.83717]
[1727823607915,0.1679,2458.2,2457.8,0.7685]
[1727823608157,4.23593,2458.2,2457.7,1.71844889]
[1727823608443,4.23593,2458.2,2457.3,0.63574173]
[1727823608444,4.06901,2457.6,2457.3,0.63574173]
[1727823608648,0.1679,2457.7,2457.2,0.63574173]
[1727823608649,1.01982439,2457.7,2457.2,0.63574173]
[1727823608784,1.01982439,2457.7,2456.9,4.07005]
[1727823608785,4.06944,2457.4,2456.9,4.07005]
[1727823608983,8.13894,2457.4,2456.8,1.71844889]
[1727823609186,8.13894,2457.4,2456.7,4.07037]
[1727823609187,0.55,2457.2,2456.7,4.07037]
[1727823609428,0.55,2457.2,2456.7,5.78881889]
[1727823609602,0.55,2457.2,2456.8,4.07032]
[1727823610083,0.55,2457.2,2456.8,7.79982323]
[1727823610284,0.55,2457.2,2456.7,4.07037]
[1727823610285,0.1679,2457.5,2457.1,4.06968]
[1727823610509,3.0,2457.6,2457.1,4.06968]
[1727823610727,3.723682,2457.6,2457.1,4.06968]
[1727823611520,4.06918,2457.5,2456.9,4.07002]
[1727823611909,3.723682,2457.6,2457.1,4.06975]
[1727823612424,3.723682,2457.6,2457.1,8.13949]
[1727823612929,3.0,2457.6,2457.2,4.06956]
[1727823613222,0.1679,2457.7,2457.2,7.79906323]
[1727823613633,0.1679,2457.7,2457.3,4.06939]
[1727823615343,4.06861,2457.9,2457.4,7.79883323]